bitfinex/quotes_BTCUSD_20240821
["timestamp","ask_amount","ask_price","bid_price","bid_amount"]
[1724257015133,0.02834456,59533.0,59532.0,1.0067988]
[1724257015352,0.02834456,59533.0,59532.0,1.0107988]
[1724257016287,0.02834456,59533.0,59532.0,0.1709168]
[1724257016964,0.02834456,59533.0,59532.0,0.1669168]
[1724257017178,0.02934456,59533.0,59532.0,0.1769168]
[1724257017409,0.02934456,59533.0,59532.0,0.3448928]
[1724257018712,0.02934456,59533.0,59532.0,1.51675478]
[1724257019407,0.02934456,59533.0,59532.0,1.85370778]
[1724257019903,1e-08,59533.0,59532.0,1.85370778]
[1724257020134,1e-08,59533.0,59532.0,1.51775478]
[1724257021291,1e-08,59533.0,59532.0,1.52069706]
[1724257021519,1e-08,59533.0,59532.0,1.62169706]
[1724257021965,1e-08,59533.0,59532.0,1.95765006]
[1724257022183,1e-08,59533.0,59532.0,1.99846209]
[1724257022386,0.00041774,59545.0,59544.0,0.84011903]
[1724257022618,0.00041774,59545.0,59544.0,0.66926662]
[1724257022835,0.00041774,59545.0,59544.0,0.16543762]
[1724257023527,0.00041774,59545.0,59544.0,0.33338062]
[1724257023763,0.00041774,59545.0,59544.0,0.16543762]
[1724257024020,0.00041774,59545.0,59544.0,0.01813762]
[1724257025138,0.00041774,59545.0,59544.0,0.27478062]
[1724257025373,0.50423774,59545.0,59544.0,0.02513762]
[1724257025607,0.16935774,59545.0,59544.0,0.01240403]
[1724257025833,0.16935774,59545.0,59544.0,0.03013762]
[1724257026357,0.84011774,59545.0,59544.0,0.01773359]
[1724257026837,0.503829,59544.0,59543.0,0.00040403]
[1724257027049,0.839715,59544.0,59543.0,0.01814573]
[1724257027535,0.918215,59544.0,59543.0,0.01814573]
[1724257027763,1.41810398,59544.0,59543.0,0.0177417]
[1724257027984,1.41810398,59544.0,59532.0,0.00040403]
[1724257027985,0.167974,59533.0,59532.0,0.00040403]
[1724257028209,0.167972,59534.0,59532.0,0.00040403]
[1724257028650,0.335927,59537.0,59533.0,0.01782278]
[1724257028651,0.19431306,59535.0,59533.0,0.01782278]
[1724257029081,0.19431306,59535.0,59534.0,0.00040403]
[1724257029308,0.02634406,59535.0,59534.0,0.5996317]
[1724257029996,0.02634406,59535.0,59534.0,1.16157668]
[1724257030228,0.167946,59543.0,59542.0,0.00040403]
[1724257030449,0.167946,59543.0,59542.0,0.01815383]
[1724257030683,0.50424374,59545.0,59544.0,0.00040403]
[1724257031370,0.0829,59543.0,59538.0,0.00040403]
[1724257031601,0.335903,59541.0,59536.0,0.00040403]
[1724257031825,0.335903,59541.0,59540.0,0.00040403]
[1724257032047,0.503854,59541.0,59540.0,0.01817005]
[1724257032274,0.167951,59541.0,59540.0,0.00040403]
[1724257033418,0.503853,59541.0,59540.0,0.00040403]
[1724257033628,0.167954,59540.0,59539.0,0.00040403]
[1724257034106,0.167954,59540.0,59539.0,0.01817816]
[1724257034324,0.167954,59540.0,59539.0,0.00040403]
[1724257034560,0.167954,59540.0,59539.0,0.01817816]
[1724257034778,0.337902,59541.0,59540.0,0.98187403]
[1724257034779,0.002,59541.0,59540.0,0.98187403]
[1724257035017,0.02675869,59545.0,59544.0,0.16834703]
[1724257035271,0.02675869,59545.0,59544.0,0.01813762]
[1724257035488,0.02675869,59545.0,59544.0,0.18608062]
[1724257036420,0.02675869,59545.0,59544.0,0.01813762]
[1724257037304,0.02675869,59545.0,59544.0,0.18608062]
[1724257037518,0.02675869,59545.0,59544.0,0.52196662]
[1724257037724,0.02875869,59545.0,59544.0,0.52196662]
[1724257038841,0.02875869,59545.0,59544.0,0.01813762]
[1724257039101,1.16966167,59545.0,59544.0,0.01773359]
[1724257039331,1.50554167,59545.0,59544.0,0.01773359]
[1724257039562,0.167957,59539.0,59538.0,0.00040403]
[1724257040266,0.19429973,59539.0,59538.0,0.01818626]
[1724257040487,0.53021373,59539.0,59538.0,0.01818626]
[1724257040704,0.02634273,59539.0,59538.0,0.02918626]
[1724257041150,0.19429973,59539.0,59538.0,0.02878223]
[1724257041622,0.19429973,59539.0,59538.0,0.01778223]
[1724257041623,0.53021373,59539.0,59538.0,0.01778223]
[1724257042021,0.167962,59537.0,59536.0,0.00040403]
[1724257042283,0.167962,59537.0,59533.0,0.1688772]
[1724257042284,0.0768,59537.0,59534.0,0.00040403]
[1724257042497,0.503913,59534.0,59533.0,0.0009042]
[1724257042730,0.839855,59534.0,59533.0,0.00130823]
[1724257043446,0.503913,59534.0,59533.0,0.00130823]
[1724257043673,0.36226173,59539.0,59538.0,0.00040403]
[1724257043674,0.02934273,59539.0,59538.0,0.00040403]
[1724257043917,0.19729973,59539.0,59538.0,0.00040403]
[1724257044171,0.19429973,59539.0,59538.0,0.00040403]
[1724257044399,0.02634273,59539.0,59538.0,0.00040403]
[1724257044626,0.02634273,59539.0,59538.0,0.01818626]
[1724257044866,0.02634273,59539.0,59538.0,0.00040403]
[1724257045085,0.19829973,59539.0,59538.0,0.01818626]
[1724257045312,0.20129973,59539.0,59538.0,0.01818626]
[1724257045576,0.03334273,59539.0,59538.0,0.01818626]
[1724257046272,0.02934273,59539.0,59538.0,0.01818626]
[1724257046516,0.02634273,59539.0,59538.0,0.60632323]
[1724257046773,0.001,59539.0,59538.0,1.00504223]
[1724257046997,0.001,59539.0,59538.0,1.34096123]
[1724257047483,0.00041774,59545.0,59544.0,0.24654703]
[1724257047708,0.00041774,59545.0,59544.0,0.58243303]
[1724257047938,0.00041774,59545.0,59544.0,0.60016662]
[1724257048630,0.00041774,59545.0,59544.0,0.18608062]
[1724257049096,0.64433774,59545.0,59544.0,0.01813762]
[1724257049372,0.64433774,59545.0,59544.0,0.01773359]
[1724257049810,0.30845774,59545.0,59542.0,0.00040403]
[1724257050049,0.00241774,59545.0,59543.0,0.167945]
[1724257050273,0.00241774,59545.0,59544.0,0.568729]
[1724257050499,0.00241774,59545.0,59544.0,0.904615]
[1724257050714,0.00041774,59545.0,59544.0,0.904615]
[1724257051207,0.00241774,59545.0,59544.0,0.904615]
[1724257051445,0.00241774,59545.0,59544.0,0.92234859]
[1724257051680,0.00241774,59545.0,59544.0,1.25823459]
[1724257051681,0.00041774,59545.0,59544.0,1.25823459]
[1724257052875,0.00141774,59545.0,59544.0,1.25863862]
[1724257053554,0.00241774,59545.0,59544.0,1.26863862]
[1724257054241,0.00141774,59545.0,59544.0,1.26863862]
[1724257054470,0.00141774,59545.0,59544.0,1.35533862]
[1724257056314,0.00141774,59545.0,59544.0,1.5193416]
[1724257056562,0.00141774,59545.0,59544.0,1.56964345]
[1724257056806,0.00141774,59545.0,59544.0,1.96726747]
[1724257057094,0.00141774,59545.0,59544.0,1.9672604]
[1724257057336,0.00141774,59545.0,59544.0,1.5193416]
[1724257057564,0.00141774,59545.0,59544.0,1.59479149]
[1724257057787,0.00141774,59545.0,59544.0,1.56963461]
[1724257058014,0.00141774,59545.0,59544.0,1.40563209]
[1724257058327,0.00141774,59545.0,59544.0,1.35533862]
[1724257060115,0.00141774,59545.0,59544.0,0.95455262]
[1724257061751,0.00141774,59545.0,59544.0,1.4544416]
[1724257061982,0.00141774,59545.0,59544.0,1.5161416]
[1724257062238,0.00141774,59545.0,59544.0,1.56643464]
[1724257062702,0.00141774,59545.0,59544.0,1.5161416]
[1724257064539,0.00141774,59545.0,59544.0,1.35213862]
[1724257066663,0.00141774,59545.0,59544.0,1.21273862]
[1724257067366,0.00141774,59545.0,59544.0,0.54096662]
[1724257068032,0.00141774,59545.0,59544.0,0.87685262]
[1724257068255,0.00141774,59545.0,59544.0,0.54096662]
[1724257068510,0.16935774,59545.0,59544.0,0.03713762]
[1724257068730,0.00141774,59545.0,59544.0,0.03713762]
[1724257068948,0.00141774,59545.0,59544.0,0.54096662]
[1724257069397,0.00141774,59545.0,59544.0,0.95375262]
[1724257069647,0.00141774,59545.0,59544.0,1.01975262]
[1724257069870,0.00141774,59545.0,59544.0,1.5196416]
[1724257071042,0.00141774,59545.0,59544.0,1.5206416]
[1724257071267,0.00141774,59545.0,59544.0,1.56993183]
[1724257071724,0.00141774,59545.0,59544.0,1.5196416]
[1724257072457,0.00141774,59545.0,59544.0,1.56992746]
[1724257073149,0.00141774,59545.0,59544.0,1.5196416]
[1724257073382,0.00141774,59545.0,59544.0,1.35563862]
[1724257074080,0.00141774,59545.0,59544.0,1.21273862]
[1724257074320,0.00141774,59545.0,59544.0,0.87685262]
[1724257076566,0.00141774,59545.0,59544.0,0.54096662]
[1724257076785,0.00141774,59545.0,59544.0,0.87685262]
[1724257078835,0.00141774,59545.0,59544.0,1.36223862]
[1724257080059,0.00141774,59545.0,59544.0,1.41254067]
[1724257080510,0.00141774,59545.0,59544.0,0.87685262]
[1724257081193,0.02775629,59545.0,59544.0,0.03713762]
[1724257081418,0.10375629,59545.0,59544.0,0.03713762]
[1724257081641,0.10375629,59545.0,59544.0,0.20508062]
[1724257081880,0.02775629,59545.0,59544.0,0.54096662]
[1724257082107,0.02775629,59545.0,59544.0,0.87685262]
[1724257083027,0.02775629,59545.0,59544.0,2.00898556]
[1724257083028,0.001,59545.0,59544.0,2.00898556]
[1724257083254,0.00823,59565.0,59562.0,0.00040403]
[1724257083694,0.00823,59565.0,59564.0,0.167886]
[1724257083939,0.03456445,59565.0,59564.0,0.167886]
[1724257084161,0.03456445,59565.0,59564.0,0.18981801]
[1724257084390,0.03456445,59565.0,59564.0,0.19022204]
[1724257084586,0.03456445,59565.0,59564.0,0.52559101]
[1724257085486,0.03456445,59565.0,59564.0,0.86136401]
[1724257085742,0.03456445,59565.0,59564.0,1.27823701]
[1724257085967,0.03456445,59565.0,59564.0,1.34093701]
[1724257086191,0.03456445,59565.0,59564.0,1.34134104]
[1724257086887,0.03456445,59565.0,59564.0,1.34634104]
[1724257087104,0.03456445,59565.0,59564.0,1.34334104]
[1724257087328,0.03456445,59565.0,59564.0,1.34134104]
[1724257087556,0.03456445,59565.0,59564.0,1.35034104]
[1724257087789,0.03456445,59565.0,59564.0,1.35934104]
[1724257090095,0.00823,59565.0,59564.0,1.35934104]
[1724257090327,0.00823,59565.0,59564.0,1.36034104]
[1724257090586,0.00823,59565.0,59564.0,1.35934104]
[1724257091786,0.00823,59565.0,59564.0,1.52334402]
[1724257092988,0.00823,59565.0,59564.0,1.8620593]
[1724257093212,0.00823,59565.0,59564.0,2.33586733]
[1724257093461,0.00823,59565.0,59564.0,2.36198708]
[1724257093691,0.00823,59565.0,59564.0,2.33678742]
[1724257093972,0.00823,59565.0,59564.0,2.32384514]
[1724257094198,0.00823,59565.0,59564.0,2.33078742]
[1724257094450,0.00823,59565.0,59564.0,2.33177316]
[1724257094675,0.00823,59565.0,59564.0,2.23237382]
[1724257094907,0.00823,59565.0,59564.0,2.56714682]
[1724257095141,0.00823,59565.0,59564.0,2.76854616]
[1724257095417,0.00823,59565.0,59564.0,2.66814682]
[1724257095654,0.00823,59565.0,59564.0,2.70514682]
[1724257095894,0.00823,59565.0,59564.0,2.67714682]
[1724257096147,0.00823,59565.0,59564.0,2.65414682]
[1724257096387,0.00823,59565.0,59564.0,2.67820454]
[1724257096645,0.00823,59565.0,59564.0,2.0062637]
[1724257096875,0.00823,59565.0,59564.0,1.9922637]
[1724257097139,0.00823,59565.0,59564.0,2.0202637]
[1724257097374,0.00823,59565.0,59564.0,1.9710593]
[1724257097608,0.00823,59565.0,59564.0,1.95611702]
[1724257097854,0.00823,59565.0,59564.0,1.97011702]
[1724257098556,0.00823,59565.0,59564.0,1.95611702]
[1724257098813,0.00823,59565.0,59564.0,1.97011702]
[1724257099067,0.00823,59565.0,59564.0,1.47064402]
[1724257099316,0.00823,59565.0,59564.0,1.45664402]
[1724257099566,0.00823,59565.0,59564.0,1.44264402]
[1724257099818,0.00823,59565.0,59564.0,1.45664402]
[1724257100064,0.00823,59565.0,59564.0,1.21154104]
[1724257100311,0.00823,59565.0,59564.0,1.19754104]
[1724257100548,0.00823,59565.0,59564.0,1.22354104]
[1724257100793,0.00823,59565.0,59564.0,0.87476804]
[1724257101041,0.00823,59565.0,59564.0,0.88876804]
[1724257101285,0.00823,59565.0,59564.0,0.87476804]
[1724257102009,0.00823,59565.0,59564.0,0.53899504]
[1724257102249,0.00823,59565.0,59564.0,0.52599504]
[1724257102724,0.00823,59565.0,59564.0,0.21722204]
[1724257103224,0.00823,59565.0,59564.0,0.20422204]
[1724257103225,0.00823,59565.0,59564.0,0.19022204]
[1724257103452,0.00823,59565.0,59564.0,0.20322204]
[1724257103709,0.00823,59565.0,59564.0,0.89112548]
[1724257103961,0.00823,59565.0,59564.0,0.88776804]
[1724257104717,0.00823,59565.0,59564.0,1.22354104]
[1724257105000,0.00823,59565.0,59564.0,0.88776804]
[1724257105214,0.15323,59565.0,59564.0,0.21622204]
[1724257105675,0.15323,59565.0,59564.0,0.20322204]
[1724257106128,0.15323,59565.0,59564.0,0.21622204]
[1724257106343,0.15323,59565.0,59564.0,0.03962004]
[1724257106537,0.15323,59565.0,59564.0,0.02662004]
[1724257106804,0.321113,59565.0,59564.0,0.03921601]
[1724257107033,0.992647,59565.0,59564.0,0.03921601]
[1724257107271,0.992647,59565.0,59564.0,0.026]
[1724257107517,0.65688,59565.0,59564.0,0.026]
[1724257107735,0.65688,59565.0,59564.0,0.013]
[1724257108425,0.167893,59562.0,59559.0,0.167899]
[1724257109379,0.0773,59561.0,59558.0,0.00040403]
[1724257109630,0.581001,59559.0,59558.0,0.00040403]
[1724257109864,0.167903,59558.0,59557.0,0.00040403]
[1724257110104,0.167903,59558.0,59554.0,0.167912]
[1724257110105,0.167903,59558.0,59554.0,0.16831603]
[1724257110362,0.19423614,59558.0,59554.0,0.16831603]
[1724257110682,0.1378,59557.0,59555.0,0.167911]
[1724257110845,0.0767,59556.0,59552.0,0.00040403]
[1724257111079,0.0792,59549.0,59547.0,0.00040403]
[1724257111311,0.582994,59548.0,59547.0,0.00040403]
[1724257112016,0.10553827,59548.0,59547.0,0.00040403]
[1724257112478,0.02633827,59548.0,59547.0,0.16833803]
[1724257112729,0.02633827,59548.0,59547.0,0.50420703]
[1724257112986,0.02633827,59548.0,59547.0,0.84607603]
[1724257113456,0.02633827,59548.0,59547.0,0.85707603]
[1724257113719,0.02633827,59548.0,59547.0,1.42634801]
[1724257113963,0.4776,59559.0,59557.0,0.167904]
[1724257114220,0.4776,59559.0,59558.0,0.00040403]
[1724257114450,0.4776,59559.0,59558.0,0.01365893]
[1724257114689,0.50393399,59559.0,59558.0,0.01365893]
[1724257115438,0.50493399,59559.0,59558.0,0.01365893]
[1724257115932,0.67183399,59559.0,59558.0,0.01365893]
[1724257116176,0.67283399,59559.0,59558.0,0.01365893]
[1724257116426,0.67283399,59559.0,59558.0,0.00040403]
[1724257116662,0.02833399,59559.0,59558.0,0.00040403]
[1724257116884,0.02833399,59559.0,59558.0,0.01365893]
[1724257117845,0.19523399,59559.0,59558.0,0.01365893]
[1724257118385,0.02733399,59559.0,59558.0,0.01365893]
[1724257118733,0.02733399,59559.0,59558.0,0.18156193]
[1724257118961,0.02633399,59559.0,59558.0,0.01365893]
[1724257119915,0.02633399,59559.0,59558.0,0.18156193]
[1724257120900,0.02633399,59559.0,59558.0,0.51736893]
[1724257121380,0.02633399,59559.0,59558.0,0.52236893]
[1724257121824,0.02633399,59559.0,59558.0,0.52036893]
[1724257122072,0.02633399,59559.0,59558.0,0.86017593]
[1724257122324,0.02633399,59559.0,59558.0,1.19598293]
[1724257123061,0.08493,59565.0,59564.0,0.50406303]
[1724257123062,0.00823,59565.0,59564.0,0.50406303]
[1724257123304,0.00823,59565.0,59564.0,0.83983603]
[1724257123576,0.00823,59565.0,59564.0,1.18882504]
[1724257124319,0.00823,59565.0,59564.0,1.19282504]
[1724257124555,0.00823,59565.0,59564.0,1.35682802]
[1724257124783,0.00823,59565.0,59564.0,0.85705204]
[1724257125262,0.00823,59565.0,59564.0,0.86105204]
[1724257125513,0.00823,59565.0,59564.0,1.19682504]
[1724257125755,0.00823,59565.0,59564.0,0.18510201]
[1724257125756,0.15173,59565.0,59564.0,0.18510201]
[1724257125995,0.15173,59565.0,59564.0,0.18950604]
[1724257126464,0.00823,59565.0,59564.0,0.52127904]
[1724257126926,0.00823,59565.0,59564.0,0.19450604]
[1724257127158,0.00823,59565.0,59564.0,0.52127904]
[1724257127388,0.00823,59565.0,59564.0,0.52627904]
[1724257127616,0.00823,59565.0,59564.0,0.85305204]
[1724257127861,0.00823,59565.0,59564.0,1.00155204]
[1724257128128,0.00823,59565.0,59564.0,1.01555204]
[1724257128384,0.00823,59565.0,59564.0,1.50632802]
[1724257128772,0.00823,59565.0,59564.0,1.83810102]
[1724257128773,0.00823,59565.0,59564.0,1.89326197]
[1724257129214,0.00823,59565.0,59564.0,2.29066604]
[1724257129791,0.00823,59565.0,59564.0,1.84810102]
[1724257130023,0.00823,59565.0,59564.0,2.29069631]
[1724257130234,0.00823,59565.0,59564.0,2.28569631]
[1724257130560,0.00823,59565.0,59564.0,1.94137797]
[1724257130972,0.00823,59565.0,59564.0,1.92737797]
[1724257131321,0.00823,59565.0,59564.0,1.94331256]
[1724257131533,0.00823,59565.0,59564.0,1.94137028]
[1724257131753,0.00823,59565.0,59564.0,1.86610102]
[1724257132221,0.00823,59565.0,59564.0,1.85210102]
[1724257132721,1e-08,59565.0,59564.0,2.26508556]
[1724257132930,1e-08,59565.0,59564.0,2.67313065]
[1724257133182,1e-08,59565.0,59564.0,2.3008163]
[1724257133400,0.000822,59571.0,59570.0,1.95197131]
[1724257133617,0.000822,59571.0,59570.0,2.56347879]
[1724257133888,0.000822,59571.0,59570.0,2.57665592]
[1724257134106,0.000822,59571.0,59570.0,2.60173262]
[1724257134324,0.000822,59571.0,59570.0,2.59779034]
[1724257134553,0.000822,59571.0,59570.0,2.57269866]
[1724257134770,0.000822,59571.0,59570.0,2.58864094]
[1724257135022,0.000822,59571.0,59570.0,2.58669866]
[1724257135240,0.000822,59571.0,59570.0,2.12520914]
[1724257135457,0.000822,59571.0,59570.0,2.14115142]
[1724257135668,0.000822,59571.0,59570.0,2.19129001]
[1724257135911,0.000822,59571.0,59570.0,2.19329001]
[1724257136122,0.000822,59571.0,59570.0,2.20729001]
[1724257136369,0.000822,59571.0,59570.0,2.19329001]
[1724257137263,0.000822,59571.0,59570.0,2.20729001]
[1724257137498,0.000822,59571.0,59570.0,2.14315142]
[1724257137727,0.000822,59571.0,59570.0,2.1932739]
[1724257137961,0.000822,59571.0,59570.0,2.2072739]
[1724257138410,0.000822,59571.0,59570.0,2.15715142]
[1724257139053,0.000822,59571.0,59570.0,2.14315142]
[1724257139475,0.000822,59571.0,59570.0,2.12915142]
[1724257139611,0.000822,59571.0,59570.0,2.14315142]
[1724257139865,0.000822,59571.0,59570.0,2.13820914]
[1724257140038,0.000822,59571.0,59570.0,1.83130914]
[1724257140278,0.000822,59571.0,59570.0,1.35267014]
[1724257140518,0.000822,59571.0,59570.0,1.36667014]
[1724257140978,0.000822,59571.0,59570.0,1.38067014]
[1724257141211,0.000822,59571.0,59570.0,1.35267014]
[1724257141595,0.000822,59571.0,59570.0,1.36667014]
[1724257142772,0.000822,59571.0,59570.0,1.21666716]
[1724257143009,0.311488,59571.0,59570.0,0.04117713]
[1724257143240,0.982954,59571.0,59570.0,0.04117713]
[1724257143466,0.982954,59571.0,59570.0,0.028]
[1724257143696,0.311488,59571.0,59570.0,0.02840403]
[1724257143964,0.311488,59571.0,59570.0,0.00040403]
[1724257144167,0.143622,59571.0,59570.0,0.02158116]
[1724257144411,0.143622,59571.0,59570.0,0.00840403]
[1724257144637,0.143622,59571.0,59570.0,0.00040403]
[1724257144638,0.311488,59571.0,59570.0,0.00040403]
[1724257144881,0.143622,59571.0,59570.0,0.01358116]
[1724257145128,0.143622,59571.0,59570.0,0.00040403]
[1724257145413,0.143622,59571.0,59570.0,0.01358116]
[1724257146362,0.144622,59571.0,59570.0,0.01358116]
[1724257146816,0.143622,59571.0,59570.0,0.01358116]
[1724257147034,0.143622,59571.0,59570.0,0.01558116]
[1724257147282,0.143622,59571.0,59570.0,0.02358116]
[1724257147773,0.143622,59571.0,59570.0,0.01558116]
[1724257148000,0.311488,59571.0,59570.0,0.01517713]
[1724257148227,0.143622,59571.0,59570.0,0.01717713]
[1724257148452,0.647221,59571.0,59570.0,0.01717713]
[1724257148678,0.982954,59571.0,59570.0,0.01717713]
[1724257148908,0.982954,59571.0,59570.0,0.004]
[1724257149684,0.982954,59571.0,59570.0,0.00240403]
[1724257149922,0.647221,59571.0,59570.0,0.00240403]
[1724257150172,0.479355,59571.0,59567.0,0.00040403]
[1724257150423,0.167873,59569.0,59567.0,0.00040403]
[1724257150669,0.167876,59568.0,59566.0,0.00040403]
[1724257150912,0.167878,59568.0,59566.0,0.00040403]
[1724257151165,0.244278,59567.0,59566.0,0.00040403]
[1724257151394,0.244278,59567.0,59564.0,0.00040403]
[1724257151633,0.244278,59567.0,59566.0,0.00040403]
[1724257151874,0.0764,59567.0,59566.0,0.00040403]
[1724257152367,0.02632882,59568.0,59567.0,0.16828203]
[1724257152597,0.02632882,59568.0,59567.0,0.83979403]
[1724257152876,0.02632882,59568.0,59567.0,1.23605003]
[1724257153623,0.000822,59571.0,59570.0,0.83975103]
[1724257153875,0.000822,59571.0,59570.0,1.00375401]
[1724257154351,0.000822,59571.0,59570.0,1.41469301]
[1724257154603,0.000822,59571.0,59570.0,1.41569301]
[1724257154835,0.000822,59571.0,59570.0,1.75537429]
[1724257155064,0.000822,59571.0,59570.0,1.75143201]
[1724257155297,0.000822,59571.0,59570.0,1.75337429]
[1724257155554,0.000822,59571.0,59570.0,1.75143201]
[1724257156042,0.000822,59571.0,59570.0,1.75337429]
[1724257156255,0.000822,59571.0,59570.0,1.78060342]
[1724257157014,0.000822,59571.0,59570.0,1.77866114]
[1724257157262,0.000822,59571.0,59570.0,1.78260342]
[1724257157533,0.0091083,59578.0,59570.0,1.78260342]
[1724257157534,0.0091083,59578.0,59577.0,1.17535403]
[1724257157782,0.0091083,59578.0,59577.0,1.47825701]
[1724257158044,0.0091083,59578.0,59577.0,1.83208307]
[1724257158289,0.0091083,59578.0,59577.0,1.82814079]
[1724257158531,0.0091083,59578.0,59577.0,1.83208307]
[1724257158786,0.0091083,59578.0,59577.0,2.27949743]
[1724257158994,0.0091083,59578.0,59577.0,1.88220852]
[1724257159244,0.0091083,59578.0,59577.0,1.83208307]
[1724257159957,0.0091083,59578.0,59577.0,1.84114079]
[1724257160185,0.0091083,59578.0,59577.0,1.85708307]
[1724257160426,0.0091083,59578.0,59577.0,1.85908307]
[1724257160797,0.0091083,59578.0,59577.0,1.84608307]
[1724257160801,0.0091083,59578.0,59577.0,2.29349841]
[1724257161008,0.0091083,59578.0,59577.0,2.79331254]
[1724257161216,0.00822,59585.0,59578.0,1.51596931]
[1724257161450,0.000822,59589.0,59578.0,1.51596931]
[1724257161451,0.000822,59589.0,59588.0,0.98694131]
[1724257161730,0.000822,59589.0,59588.0,2.9459806]
[1724257162011,0.000822,59589.0,59588.0,3.33146216]
[1724257162253,0.02631837,59610.0,59609.0,0.67244203]
[1724257162509,0.49229154,59616.0,59609.0,0.67244203]
[1724257162510,0.49229154,59616.0,59613.0,0.50659131]
[1724257162746,0.02631164,59626.0,59613.0,1.67514301]
[1724257162985,0.075,59623.0,59613.0,1.33964601]
[1724257163691,0.075,59623.0,59613.0,1.33864601]
[1724257163918,0.02630622,59620.0,59613.0,1.33864601]
[1724257164148,0.02630622,59620.0,59613.0,1.36664601]
[1724257164374,0.07112,59619.0,59613.0,1.20264303]
[1724257164664,0.00842,59619.0,59613.0,1.35364601]
[1724257164905,0.00842,59619.0,59613.0,1.35264601]
[1724257165156,0.00842,59619.0,59613.0,1.36589183]
[1724257166336,0.00842,59619.0,59613.0,1.37018182]
[1724257167297,0.00842,59619.0,59613.0,1.35618182]
[1724257167527,0.00842,59619.0,59613.0,1.37018182]
[1724257167787,0.00842,59619.0,59613.0,1.38418182]
[1724257168017,0.00842,59619.0,59613.0,0.88468184]
[1724257168766,0.00842,59619.0,59613.0,0.21368784]
[1724257169058,0.10442931,59614.0,59613.0,0.03193984]
[1724257169253,0.16892931,59614.0,59613.0,0.03193984]
[1724257169481,0.16892931,59614.0,59613.0,0.18139785]
[1724257169703,0.16892931,59614.0,59613.0,0.19539785]
[1724257169930,0.16892931,59614.0,59613.0,0.20939785]
[1724257170157,0.16892931,59614.0,59613.0,0.18139785]
[1724257170409,0.16892931,59614.0,59613.0,0.18939785]
[1724257170854,0.16892931,59614.0,59613.0,0.18139785]
[1724257171077,0.16892931,59614.0,59613.0,0.01764985]
[1724257171303,0.16892931,59614.0,59613.0,0.18539785]
[1724257171983,0.16892931,59614.0,59613.0,0.01764985]
[1724257172215,0.16892931,59614.0,59613.0,0.52489485]
[1724257172460,0.16892931,59614.0,59613.0,0.52089485]
[1724257173129,0.16892931,59614.0,59613.0,0.52489485]
[1724257173375,0.16892931,59614.0,59613.0,0.52089485]
[1724257173623,0.10442931,59614.0,59613.0,0.85639185]
[1724257173873,0.02712931,59614.0,59613.0,0.85639185]
[1724257175052,0.02712931,59614.0,59613.0,0.85239185]
[1724257175530,0.02712931,59614.0,59613.0,0.85939185]
[1724257175752,0.02712931,59614.0,59613.0,0.85739185]
[1724257175988,0.02712931,59614.0,59613.0,0.86539185]
[1724257176215,0.02712931,59614.0,59613.0,0.86039185]
[1724257176457,0.02712931,59614.0,59613.0,0.86739185]
[1724257179065,0.02712931,59614.0,59613.0,0.19639785]
[1724257179308,0.10342931,59614.0,59613.0,0.19639785]
[1724257179963,0.10342931,59614.0,59613.0,0.02864985]
[1724257180227,0.43892031,59614.0,59613.0,0.02824582]
[1724257180459,1.00675631,59614.0,59613.0,0.015]
[1724257180894,1.17075929,59614.0,59613.0,0.015]
[1724257181327,1.17075929,59614.0,59613.0,0.007]
[1724257181558,1.50625029,59614.0,59613.0,0.007]
[1724257181779,1.50625029,59614.0,59613.0,0.008]
[1724257182032,1.50625029,59614.0,59613.0,0.015]
[1724257182508,0.83884,59606.0,59605.0,0.0009031]
[1724257182728,0.91434,59606.0,59605.0,0.00130713]
[1724257183184,0.167761,59609.0,59608.0,0.00040403]
[1724257183405,0.0755,59611.0,59610.0,0.00040403]
[1724257183406,0.243254,59611.0,59610.0,0.00040403]
[1724257183851,0.60507449,59611.0,59610.0,0.01370641]
[1724257184112,0.26956649,59611.0,59610.0,0.01370641]
[1724257184561,0.26956649,59611.0,59610.0,0.01330238]
[1724257184783,0.10181249,59611.0,59610.0,0.01330238]
[1724257184999,0.10181249,59611.0,59608.0,0.16816503]
[1724257185249,0.02631249,59611.0,59610.0,0.01370641]
[1724257185484,0.02631249,59611.0,59610.0,0.18346341]
[1724257185717,0.02631249,59611.0,59610.0,0.85349141]
[1724257185936,0.02631249,59611.0,59610.0,0.51797741]
[1724257186158,0.02631249,59611.0,59610.0,0.51697741]
[1724257186644,0.02631249,59611.0,59610.0,0.51897741]
[1724257187783,0.02631249,59611.0,59610.0,0.18746341]
[1724257188237,0.10201249,59611.0,59610.0,0.18546341]
[1724257188485,0.10201249,59611.0,59610.0,0.52497741]
[1724257188708,0.10201249,59611.0,59610.0,0.02170641]
[1724257189656,0.02631249,59611.0,59610.0,0.86049141]
[1724257189883,0.000822,59614.0,59613.0,0.50364903]
[1724257190110,0.000822,59614.0,59613.0,0.83914603]
[1724257190351,0.000822,59614.0,59613.0,0.85242899]
[1724257190572,0.000822,59614.0,59613.0,1.18792599]
[1724257191449,0.000822,59614.0,59613.0,1.19792599]
[1724257191722,0.000822,59614.0,59613.0,0.85342899]
[1724257191944,0.000822,59614.0,59613.0,0.86142899]
[1724257192169,0.000822,59614.0,59613.0,1.18792599]
[1724257192401,0.000822,59614.0,59613.0,1.19592599]
[1724257192627,0.000822,59614.0,59613.0,1.20592599]
[1724257192896,0.000822,59614.0,59613.0,1.18792599]
[1724257193112,0.000822,59614.0,59613.0,1.19792599]
[1724257193786,0.000822,59614.0,59613.0,0.86242899]
[1724257194428,0.000822,59614.0,59613.0,0.86342899]
[1724257194642,0.000822,59614.0,59613.0,0.86542899]
[1724257195367,0.000822,59614.0,59613.0,0.85242899]
[1724257195540,0.000822,59614.0,59613.0,0.86242899]
[1724257195777,0.000822,59614.0,59613.0,0.87342899]
[1724257195981,0.000822,59614.0,59613.0,0.85242899]
[1724257196203,0.000822,59614.0,59613.0,1.20092599]
[1724257196434,0.000822,59614.0,59613.0,0.86542899]
[1724257197323,0.000822,59614.0,59613.0,0.87842899]
[1724257197545,0.000822,59614.0,59613.0,1.20092599]
[1724257197782,0.000822,59614.0,59613.0,1.18792599]
[1724257198233,0.000822,59614.0,59613.0,1.19792599]
[1724257198467,0.000822,59614.0,59613.0,1.21092599]
[1724257198706,0.000822,59614.0,59613.0,1.20092599]
[1724257198937,0.000822,59614.0,59613.0,1.21392599]
[1724257199177,0.000822,59614.0,59613.0,1.21013086]
[1724257199995,0.02713073,59618.0,59617.0,1.17456303]
[1724257200255,0.02713073,59618.0,59617.0,1.25636303]
[1724257200256,0.000822,59618.0,59617.0,1.25636303]
[1724257200527,0.000822,59618.0,59617.0,1.17456303]
[1724257201883,0.000822,59618.0,59617.0,1.18756303]